Cogmind - Beta 14 @@@ ROGUE MODE // 2025.03.02 @ 15:13:42 Player: PlasticHeart Result: Destroyed by as-16375 with Assembled Rifle Performance ------------- Evolutions (0) 0 Regions Visited (2) 400 Robots Destroyed (26) 130 Value Destroyed (546) 546 Prototype IDs (1) 20 Alien Tech Used (0) 0 Bonus (0) 0 TOTAL SCORE: 1096 Bonus ------- None Cogmind --------- Core Integrity 0/250 Matter 233/300 Energy 250/250 System Corruption 0% Temperature Cool (1) Movement Rolling (105) Ox1 Location -10/Mines Parts ------- > --- POWER (1) -------- Ion Engine > --- PROPULSION (2) --- Wheel Compact Wheel > --- UTILITY (2) ------ High-capacity Storage Unit Light Armor Plating > --- WEAPON (2) ------- Grenade Launcher > --- INVENTORY (20) --- Ion Engine Light Ion Engine Light Nuclear Core Light Treads Light Treads Light Treads Light Treads Compact Wheel High-capacity Storage Unit Sensor Array Signal Interpreter Seismic Detector Targeting Computer Light Armor Plating Splice Drone Bay (6/6) Medium Laser Assault Rifle Assault Rifle Assault Rifle Assault Rifle Peak State ------------ > --- POWER ------------ Ion Engine > --- PROPULSION ------- Compact Wheel Compact Wheel > --- UTILITY ---------- High-capacity Storage Unit Splice Drone Bay > --- WEAPON ----------- Assault Rifle Assault Rifle > --- INVENTORY -------- Ion Engine Light Ion Engine Light Nuclear Core Light Treads Light Treads Light Treads Light Treads Compact Wheel High-capacity Storage Unit Sensor Array Signal Interpreter Seismic Detector Targeting Computer Light Armor Plating Light Armor Plating Medium Laser Assault Rifle Assault Rifle Assault Rifle Grenade Launcher [Rating: 15] Favorites ----------- Power Ion Engine Engine Ion Engine Propulsion Compact Wheel Treads Light Treads Wheel Compact Wheel Utility High-capacity Storage Unit Device Splice Drone Bay Storage High-capacity Storage Unit Processor Targeting Computer Protection Light Armor Plating Weapon Assault Rifle Energy Gun Medium Laser Ballistic Gun Assault Rifle Launcher Grenade Launcher Build | -11 -10 -10 ------- Run | Yrd Mat Min Slots Evolved . | . . . Power . | . . . Propulsion . | . . . Utility . | . . . Weapon . | . . . Parts Attached 21 | 7 10 4 Power 1 | 1 . . Engine 1 | 1 . . Core . | . . . Reactor . | . . . Propulsion 6 | 2 3 1 Treads 2 | 2 . . Leg . | . . . Wheel 4 | . 3 1 Hover . | . . . Flight . | . . . Utility 9 | 2 5 2 Device 1 | . . 1 Storage 5 | 2 3 . Processor 1 | . 1 . Hackware . | . . . Protection 2 | . 1 1 Artifact . | . . . Weapon 5 | 2 2 1 Energy Gun 1 | 1 . . Energy Cannon . | . . . Ballistic Gun 3 | 1 2 . Ballistic Cannon . | . . . Launcher 1 | . . 1 Special Weapon . | . . . Impact Weapon . | . . . Slashing Weapon . | . . . Piercing Weapon . | . . . Special Melee Weapon . | . . . Unidentified Prototypes 1 | . . 1 Parts Lost 1 | . . 1 Power . | . . . Propulsion . | . . . Utility . | . . . Weapon 1 | . . 1 Highest Loss Streak 1 | . . 1 To Critical Strikes . | . . . Average Slot Usage (%) 99 | . 99 100 Engine 14 | . 14 14 Treads 3 | . 5 . Wheel 24 | . 22 28 Storage 15 | . 16 14 Processor 1 | . 2 . Protection 10 | . 8 14 Energy Gun 2 | . 3 . Ballistic Gun 25 | . 24 27 Peak Build Rating 15 | 7 9 15 Average Rating 8 | 4 8 9 On Entrance 5 | . 7 9 Naked Turns . | . . . Heaviest Build 52 | 18 52 52 Greatest Support 40 | 40 40 32 Greatest Overweight (x) 1 | . 1 1 Average Overweight (x) . | . . 1 Largest Inventory Capacity 20 | 8 20 20 Average Capacity 17 | 7 18 20 Most Carried 20 | 6 20 20 Average Carried 16 | 4 15 19 Final Capacity 20 | 8 20 20 Final Carried 20 | 6 19 20 Class Distribution -------------------- 100% | Mutant Dominant Class ---------------- Mutant | -10/Materials Mutant | -10/Mines Resources | -11 -10 -10 ----------- Run | Yrd Mat Min Matter Collected 699 | 273 338 88 Remotely . | . . . Salvage Created 945 | 79 762 104 Parts 50 | 6 38 6 Haulers Intercepted 1 | . 1 . Recyclers Shooed 6 | 1 4 1 Parts Field Recycled . | . . . Retrieved Matter . | . . . Parts Self-Destructed . | . . . Prevented . | . . . Kills | -11 -10 -10 ------- Run | Yrd Mat Min Combat Hostiles Destroyed 25 | . 14 11 Guns 17 | . 14 3 AOE 8 | . . 8 Classes Destroyed 7 | 2 4 1 Tunneler 3 | 1 . 2 Hauler 1 | . 1 . Recycler 3 | 1 2 . Watcher 2 | . 2 . Swarmer 6 | . 3 3 Grunt 11 | . 11 . Assembled 8 | . . 8 Best Kill Streak 9 | 2 4 9 Combat Bots Only 8 | . 3 8 Max Kills in Single Turn 6 | 1 1 6 Gunslinging . | . . . Exploded 5 | . . 5 Melee . | . . . Uniques/NPCs Destroyed . | . . . Combat | -11 -10 -10 -------- Run | Yrd Mat Min Hostile Shots Fired 85 | . 52 33 Missed 30 | . 18 12 Damage Taken 782 | . 388 394 Core 261 | . 148 113 Absorbed by Shields . | . . . Regen/Repaired (Parts) 10 | . 10 . Core Remaining (%) 100 | 100 . . Volleys Fired 74 | 3 53 18 Largest 2 | 2 2 2 Hottest 70 | 70 70 40 Shots Fired 145 | 6 106 33 Gun 142 | 6 106 30 Cannon . | . . . Launcher 3 | . . 3 Special . | . . . Kinetic 123 | 3 90 30 Thermal 19 | 3 16 . Explosive 3 | . . 3 Electromagnetic . | . . . Robot Hit Streak 12 | 4 12 5 Robot Miss Streak 5 | 1 3 5 Penetration Max . | . . . Secondary Targets . | . . . Shots Hit Robots 88 | 4 67 17 Core Hits 61 | 3 33 25 Critical Kills . | . . . Critical Parts Destroyed . | . . . Critical Strikes 3 | . 3 . Burn 3 | . 3 . Melee Attacks . | . . . Impact . | . . . Slashing . | . . . Piercing . | . . . Sneak Attacks . | . . . Combat Hostiles . | . . . Follow-up Attacks . | . . . Damage Inflicted 1545 | 43 821 681 Guns 1074 | 43 821 210 Cannons . | . . . Explosions 471 | . . 471 Melee . | . . . Ramming . | . . . Kinetic 849 | 6 633 210 Thermal 225 | 37 188 . Explosive 471 | . . 471 Electromagnetic . | . . . Impact . | . . . Slashing . | . . . Piercing . | . . . Highest Corruption . | . . . Average Corruption . | . . . Corruption Purged . | . . . Corruption Blocked . | . . . Overload Shots . | . . . Overflow Damage 9 | . . 9 Projectiles . | . . . Explosions 9 | . . 9 Melee . | . . . Knockbacks . | . . . Impact . | . . . Kinetic . | . . . Secondary . | . . . Self-Inflicted Damage 79 | . . 79 Shots 3 | . . 3 Rammed . | . . . Targets Rammed . | . . . Kicked . | . . . Crushed . | . . . Highest Temperature 187 | 60 187 18 Average Temperature 63 | 26 69 9 Received Heat Transfer 209 | . 189 20 Siege Activations . | . . . Robots Corrupted . | . . . Combat Hostiles . | . . . Parts Fried . | . . . Impact Corruptions . | . . . Robots Melted . | . . . Combat Hostiles . | . . . Parts Melted . | . . . Heat Transferred 888 | 111 777 . Parts Sabotaged . | . . . Parts Stolen . | . . . Parts Stripped . | . . . Power Chain Reactions . | . . . Alert | -11 -10 -10 ------- Run | Yrd Mat Min Peak Influence 302 | 10 302 206 Initial 58 | . 6 58 Average 124 | 4 151 95 Maximum Alert Level 1 | . 1 1 Low Security (%) 76 | 100 63 99 Level 1 23 | . 36 . Level 2 . | . . . Level 3 . | . . . Level 4 . | . . . Level 5 . | . . . High Security . | . . . Max Security . | . . . Squads Dispatched 3 | . 3 . Investigation 1 | . 1 . Extermination . | . . . Reinforcement 2 | . 2 . Assault . | . . . Garrison . | . . . Intercept . | . . . Searches Triggered . | . . . Construction Impeded . | . . . Haulers Reinforced . | . . . Active Scanning Responses . | . . . Cargo Convoy Interrupts . | . . . Stealth | -11 -10 -10 --------- Run | Yrd Mat Min Distress Signals 4 | . 4 . Communications Jammed . | . . . Distress Signals . | . . . Times Spotted 43 | . 20 23 Peak Tracking Total 14 | . 4 14 Tactical Retreats 3 | . 1 2 Traps | -11 -10 -10 ------- Run | Yrd Mat Min Traps Triggered 1 | . 1 . Indirectly . | . . . Trap Hack Attempts . | . . . Triggered . | . . . Disarmed . | . . . Reprogrammed . | . . . Reused . | . . . Traps Extracted . | . . . Installed . | . . . Triggered . | . . . Machines | -11 -10 -10 ---------- Run | Yrd Mat Min Machines Disabled . | . . . Max in Single Turn . | . . . Machines Repaired . | . . . Machines Dismantled . | . . . Machines Sabotaged . | . . . Overloaded Fab Kills . | . . . Hacking | -11 -10 -10 --------- Run | Yrd Mat Min Machines Accessed 4 | . 3 1 Terminals 2 | . 2 . Fabricators . | . . . Repair Stations 1 | . 1 . Recycling Units . | . . . Scanalyzers . | . . . Garrison Access . | . . . Total Hacks 10 | . 9 1 Successful 4 | . 3 1 Failed 6 | . 6 . Catastrophic 2 | . 2 . Database Lockouts . | . . . Manual . | . . . Terminals 7 | . 7 . Fabricators . | . . . Repair Stations 2 | . 2 . Recycling Units . | . . . Scanalyzers . | . . . Garrison Access . | . . . Terminal Hacks 2 | . 1 1 Open Door 1 | . . 1 Hauler Manifests 1 | . 1 . Fabricator Hacks . | . . . Repair Station Hacks 2 | . 2 . Scan Component 1 | . 1 . Repair 1 | . 1 . Recycling Unit Hacks . | . . . Scanalyzer . | . . . Garrison Access Hacks . | . . . Unauthorized Hacks . | . . . Terminals . | . . . Fabricators . | . . . Repair Stations . | . . . Recycling Units . | . . . Scanalyzers . | . . . Garrison Access . | . . . Data Cores Recovered . | . . . Used . | . . . Hacking Detections 2 | . 2 . Full Trace Events 1 | . 1 . Feedback Events . | . . . Feedback Blocked . | . . . Robot Schematics Acquired . | . . . Robots Built . | . . . Authchips . | . . . Time . | . . . Total Robot Build Rating . | . . . Part Schematics Acquired . | . . . Parts Built . | . . . Authchips . | . . . Time . | . . . Total Part Build Rating . | . . . Parts Repaired 1 | . 1 . Time 26 | . 26 . Parts Recycled . | . . . Recycled Matter . | . . . Retrieved Matter . | . . . Retrieved Components . | . . . Parts Scanalyzed . | . . . Part Schematics Acquired . | . . . Parts Damaged . | . . . Bothacking | -11 -10 -10 ------------ Run | Yrd Mat Min Used RIF Installer . | . . . Robots Hacked . | . . . Non-combat . | . . . Combat . | . . . Robot Hacks Applied . | . . . Relay Couplers Released . | . . . Fabnet Peak Effective % . | . . . Robots Rewired . | . . . Allies Hacked . | . . . Hacks Repelled . | . . . Allies | -11 -10 -10 -------- Run | Yrd Mat Min Total Allies . | . . . Largest Group . | . . . Highest-Rated Group . | . . . Highest-Rated Ally . | . . . Total Orders . | . . . Ally Attacks . | . . . Total Damage . | . . . Kills . | . . . Allies Corrupted . | . . . Allies Melted . | . . . Intel | -11 -10 -10 ------- Run | Yrd Mat Min Robot Analysis Total . | . . . Derelict Logs Recovered 1 | . . 1 Drone Launches . | . . . Drone Recoveries . | . . . Exploration | -11 -10 -10 ------------- Run | Yrd Mat Min Turns Passed 1265 | 86 801 378 Spaces Moved 732 | 44 407 281 Core 11 | 11 . . Treads 96 | 33 63 . Legs . | . . . Wheels 625 | . 344 281 Hover . | . . . Flight . | . . . Fastest Speed 50 | 50 115 105 Average Speed 119 | 132 122 113 Slowest Speed 240 | 160 240 115 Overloaded Moves . | . . . Propulsion Burnouts . | . . . Robots Hopped . | . . . Cave-ins Triggered . | . . . Exploration Rate (%) 36 | 3 56 50 Regions Visited 2 Branch Regions 1 Pre-discovered Areas . | . . . Known Exits Taken . | . . . Unknown Exits Taken 2 | 1 1 . Scrap Searched 2 | . . 2 Spaces Dug . | . . . Terrain Destroyed 27 | . . 27 Melee . | . . . Projectile . | . . . AOE 27 | . . 27 Terrain Rammed . | . . . Walls Destroyed . | . . . Machines Disabled . | . . . Actions | -11 -10 -10 --------- Run | Yrd Mat Min Total 978 | 65 608 305 Wait 118 | 2 116 . Move 730 | 43 406 281 Hop . | . . . Pick Up 27 | 10 16 1 Fast Attach 5 | 3 2 . Attach 7 | 4 3 . Detach . | . . . Swap 9 | . 5 4 Drop 8 | . 7 1 Fire 74 | 3 53 18 Melee . | . . . Ram . | . . . Kick . | . . . Crush . | . . . Escape Stasis . | . . . Rewire . | . . . Trap . | . . . Miscellaneous . | . . . Route ------- -11/Scrapyard -10/Materials (discovered 3 exits: [*Mat] / *Min x2) -10/Mines (discovered 2 exits: [*Mat x2]) History --------- Turn | Location | Event 11 | -11/Scrapyard | Discovered new exit (range 16) 87 | -11/Scrapyard | Entered Materials 294 | -10/Materials | Discovered new exit (range 16) 329 | -10/Materials | Build established: Mutant 526 | -10/Materials | Discovered new exit (range 5) 576 | -10/Materials | Repaired Com. Wheel 632 | -10/Materials | Discovered new exit (range 16) 713 | -10/Materials | Core integrity fell below 50% 888 | -10/Materials | Entered Mines 914 | -10/Mines | Discovered new exit (range 6) 991 | -10/Mines | Found the Drone Emporium 1000 | -10/Mines | Found Prototype Device 1001 | -10/Mines | Identified Splice Drone Bay 1089 | -10/Mines | Learned Materials terminal intel 1093 | -10/Mines | Discovered new exit (range 9) 1230 | -10/Mines | Assembled infested the area 1262 | -10/Mines | Core integrity fell below 20% 1266 | -10/Mines | Destroyed by as-16375 with Assembled Rifle Last Messages --------------- 01258_ Knocked back. 01259_ Destroyed Asb. Hover Unit. 01261_ C-30 ARC bursts open, deploying its payload. 01261_ D-53 Grenadier unfolds itself. 01261_ as-93761 destroyed. 01261_ as-08068 destroyed. 01261_ as-99951 destroyed. 01261_ Destroyed Asb. Hover Unit. 01261_ as-63902 destroyed. 01261_ as-82551 destroyed. 01261_ T-07 Excavator destroyed. 01262_ K-01 Serf collects debris. 01263_ as-53563 destroyed. 01263_ as-39219 destroyed. 01263_ as-90748 destroyed. 01264_ Assault Rifle destroyed. 01265_ as-83123 destroyed. 01265_ as-95708 destroyed. 01265_ as-13010 destroyed. Map ----- +----------------------------------------------------+ | | | | | | | | | | | | | | | | | ?????????????????????????????????????????????????? | | ?????????????????????????????????????????????????? | | ??????????????????????????????####???????????????? | | ?????????????????????????????## ##??????????????? | | ?????????????????????????##### ##?????????????? | | ????????????????????????##""## #####?????????? | | ?????????????#####??????#" #X #?????????? | | ############## ######?#" ## #?????????? | | #?#" ## #?????????? | | ### ###" # ## #?????????? | | ######### ##?# ##""## ### #?????????? | | ????????## ######??###%######## #?# #?????????? | | ?????????####?????????# ##?## ##?# #?????????? | | ?????????????????###### ### ##??# #?????????? | | ???????????????### ##???# #?????????? | | ??????????????## ##????# #?????????? | | ??????????????# t d ####?????# #?????????? | | ??????????????# ## *d@ #???????# #?????????? | | ??????????????## ##?# = #???????# #?????????? | | ???????????????##???# #??????# #?????????? | | ??????????######????# ##??????# #?????????? | | ?????????## ##??## #???????# #?????????? | | ??????#### #### % ######### ###???????? | | ?????## ## a #???????? | | |% #???????? | | a a# ########### #???????? | | #### ######?????????# #???????? | | ## #########??## ##?????????????# #???????? | | ?????#??????????????# #?????????????# #???????? | | ???????????????????## #?????????????# #######?? | | ??????????????###### ###???????????# #?? | | ??????????????# == #???????????# ##### #?? | | ?????????????# % #?????????## ##??# #?? | | ????????????# #### #????????## #??# #?? | | ????????????# #???? #???????## """ #??# #?? | | ????????????# #????? #???????# """ #??# #?? | | ????????????## ##???????#???????# """ ##?# #?? | | ?????????????####?????????????????## """ ### #?? | | ???????????????????????????????????## ##? | | ????????????????????????????????????# #? | | ???????????????????????????????????## ##? | | ??????????????????????????????????## ##?? | +----------------------------------------------------+ Best States ------------- Heat Dissipation 25 Energy Generation 10 Energy Capacity 250 Matter Stores 300 Matter Capacity 300 Sight Range 16 Terrain Scan Density 10 Armor Coverage 150 Evasion (%) 40 Targeting Accuracy 5 Recoil Reduction 2 Item Schematics ----------------- None Robot Schematics ------------------ None Fabricated ------------ Nothing Alien Tech Used ----------------- None Achievements -------------- None Challenges ------------ None Game ------ Seed ThrowingAngularCompressor Manual? 0 Play Time 00:19:48 Cumulative 939.7 hours Start 2025.03.02 @ 14:57:18 End 2025.03.02 @ 15:13:42 Sessions 1 Manual Loads 0 Difficulty Rogue Special Mode None Game No. 497 Rogue 497 Adventurer 0 Explorer 0 Win Type - Total 68 Types 38/5/14/6/1/1/3/0/0 Lore% 52 Gallery% 80 Achievement% 76 Wizard Run 0 Options --------- Layout 1 ASCII 0 Keyboard 0 Movement Mouse Keybinds 0 Fullscreen 1 Font 36/Smallcaps Map View 50x40 Zoom Use 0% Tactical HUD 1 Map Filters NONE Filters NONE Steam 0 RUN: 7c5ea9d6-3987-4531-ae7a-a3889fa9bda6